Cogmind - Beta 15 @@@ ROGUE MODE // 2025.07.28 @ 20:33:17 Player: shapeshifter Result: Destroyed by B-86 Titan with Matter Neutralizer Performance ------------- Evolutions (7) 3500 Regions Visited (25) 5000 Robots Destroyed (89) 445 Value Destroyed (4318) 4318 Prototype IDs (72) 1440 Alien Tech Used (0) 0 Bonus (1898) 1898 TOTAL SCORE: 16601 Bonus ------- High Alert Combat Kills 18 Follower Combat Kills 57 Aligned with FarCom 300 Met Data Miner 300 Met Imprinter 300 Met Warlord at Base 500 MAIN.C Attacked Warlord 500 Friendly Fire -77 Cogmind --------- Core Integrity 0/1300 Matter 300/300 Energy 99/100 System Corruption 66% Temperature Cool (9) Movement Core (50) Location -3/Research Parts ------- > --- POWER (2) -------- (None) > --- PROPULSION (8) --- Improved Gyrokinetic Inverter Combat Antigrav System > --- UTILITY (9) ------ Advanced Target Analyzer > --- WEAPON (2) ------- (None) > --- INVENTORY (5) ---- Field Propulsion Array Layered Light Armor Plating Gamma Rifle Quantum Rifle Peak State ------------ > --- POWER ------------ Vortex Chain Reactor > --- PROPULSION ------- Combat Gravmag System Cooled Antigrav System Cooled Antigrav System Combat Linear Gravjet Combat Linear Gravjet Electron Diverter Electron Diverter > --- UTILITY ---------- Improved Melee Analysis Suite Experimental Armor Integrity Analyzer Improved Transmission Jammer Experimental Cloaking Device Layered Light Armor Plating Advanced Remote Force Field Advanced Hacking Suite Improved Component Analysis Suite > --- WEAPON ----------- Chainsword Ripper > --- INVENTORY -------- Improved Remote Force Field Improved Arc Projector [Rating: 143] Favorites ----------- Power Quantum Reactor Engine Ion Engine Power Core Light Nuclear Core Reactor Quantum Reactor Propulsion Improved Flight Unit Treads Light Treads Leg Biometal Leg Hover Unit Improved Antigrav System Flight Unit Improved Flight Unit Utility Improved Melee Analysis Suite Device Seismic Detector Storage Large Storage Unit Processor Improved Melee Analysis Suite Hackware Advanced Hacking Suite Protection Layered Light Armor Plating Weapon Improved Light Cannon Energy Gun Advanced Variable Charge Gun Energy Cannon Nova Cannon Ballistic Gun Advanced KE Penetrator Ballistic Cannon Improved Light Cannon Launcher Guided Missile Launcher Special Weapon Flamer Slashing Weapon Ripper Build | -11 -10 -10 -10 -9 -8 -7 -7 -7 -7 -7 -7 -6 -6 -6 -6 -5 -5 -5 -5 -5 -4 -4 -4 -4 -3 ------- Run | Yrd Mat Min Exi Min Mat Fac Was Fac Low Low Dat Pro Fac Low Zio Pro Fac Upp Upp War Pro Fac Ext Cet Res Slots Evolved 14 | . . . . . 4 2 . . . . . . 2 . . . 2 . . . . 2 . . 2 Power 1 | . . . . . . . . . . . . . 1 . . . . . . . . . . . . Propulsion 6 | . . . . . 2 2 . . . . . . 1 . . . . . . . . . . . 1 Utility 7 | . . . . . 2 . . . . . . . . . . . 2 . . . . 2 . . 1 Weapon . | . . . . . . . . . . . . . . . . . . . . . . . . . . Parts Attached 162 | 7 3 . 1 . 15 8 . 5 1 . . 6 4 . 1 . 13 . 7 16 . 1 5 9 60 Power 24 | 1 . . . . 3 1 . 1 . . . 3 . . . . 2 . 1 1 . . 1 2 8 Engine 6 | 1 . . . . 2 . . 1 . . . 1 . . . . . . 1 . . . . . . Core 6 | . . . . . 1 1 . . . . . 2 . . . . 2 . . . . . . . . Reactor 12 | . . . . . . . . . . . . . . . . . . . . 1 . . 1 2 8 Propulsion 58 | 2 1 . . . 1 5 . . . . . 1 1 . . . 4 . 3 7 . . 1 1 31 Treads 7 | 2 . . . . . . . . . . . . . . . . . . . . . . . . 5 Leg 4 | . . . . . . . . . . . . . . . . . . . 1 1 . . . . 2 Wheel . | . . . . . . . . . . . . . . . . . . . . . . . . . . Hover 26 | . . . . . . . . . . . . . . . . . 1 . . 4 . . 1 . 20 Flight 21 | . 1 . . . 1 5 . . . . . 1 1 . . . 3 . 2 2 . . . 1 4 Utility 46 | 2 . . 1 . 6 1 . 2 1 . . . 2 . . . 4 . 3 6 . 1 2 4 11 Device 21 | 1 . . . . 3 . . 1 1 . . . 1 . . . 2 . 2 4 . . 1 1 4 Storage 3 | 1 . . 1 . . . . . . . . . . . . . . . . . . . . . 1 Processor 7 | . . . . . . . . . . . . . 1 . . . 1 . 1 1 . . 1 . 2 Hackware 2 | . . . . . . . . . . . . . . . . . . . . 1 . 1 . . . Protection 13 | . . . . . 3 1 . 1 . . . . . . . . 1 . . . . . . 3 4 Artifact . | . . . . . . . . . . . . . . . . . . . . . . . . . . Weapon 34 | 2 2 . . . 5 1 . 2 . . . 2 1 . 1 . 3 . . 2 . . 1 2 10 Energy Gun 11 | . . . . . 3 1 . . . . . . . . . . 1 . . 1 . . 1 1 3 Energy Cannon 4 | . . . . . . . . . . . . . 1 . . . 1 . . . . . . . 2 Ballistic Gun 8 | 2 . . . . . . . 1 . . . . . . . . . . . . . . . 1 4 Ballistic Cannon 4 | . 2 . . . 1 . . . . . . . . . . . . . . . . . . . 1 Launcher 2 | . . . . . . . . . . . . . . . 1 . . . . 1 . . . . . Special Weapon 1 | . . . . . . . . . . . . 1 . . . . . . . . . . . . . Impact Weapon . | . . . . . . . . . . . . . . . . . . . . . . . . . . Slashing Weapon 4 | . . . . . 1 . . 1 . . . 1 . . . . 1 . . . . . . . . Piercing Weapon . | . . . . . . . . . . . . . . . . . . . . . . . . . . Special Melee Weapon . | . . . . . . . . . . . . . . . . . . . . . . . . . . Unidentified Prototypes 25 | . 1 . . . 4 1 . . . . . . 1 . 1 . 1 . . 10 . . . 3 3 Parts Lost 92 | . . . . . 1 . 1 . . . . 5 . . . . 4 . 8 1 . . 10 8 54 Power 13 | . . . . . . . 1 . . . . 1 . . . . 1 . . . . . 1 1 8 Propulsion 45 | . . . . . . . . . . . . 1 . . . . 3 . 7 . . . 6 3 25 Utility 21 | . . . . . . . . . . . . 1 . . . . . . 1 . . . 3 2 14 Weapon 13 | . . . . . 1 . . . . . . 2 . . . . . . . 1 . . . 2 7 Highest Loss Streak 11 | . . . . . 1 . 1 . . . . 3 . . . . 4 . 5 1 . . 9 10 11 To Critical Strikes 1 | . . . . . . . . . . . . . . . . . . . 1 . . . . . . Average Backups 5 | 3 7 8 9 11 13 4 5 4 5 5 5 4 2 4 4 3 2 5 5 4 2 2 3 1 2 Power . | . . . . . . . . . . . . . . . . . . 1 1 . . . . . . Propulsion 1 | 1 6 7 7 8 6 1 1 1 2 2 2 1 . . . . . . . . . . . . . Utility 1 | . . . 2 3 4 1 2 2 1 1 1 1 1 3 2 1 . 3 3 2 2 1 1 1 . Weapon 1 | . . . . . 2 2 2 1 1 2 2 1 1 1 1 2 2 1 1 1 . 1 1 . 1 Tool/Special . | . . . . . . . . . . . . . . . . . . . . . . . . . . Unused Backups 20 | . 5 1 . . 4 2 . 1 1 . . 1 . . 1 1 . . . . . . . . 3 Power 2 | . 1 . . . . 1 . . . . . . . . . . . . . . . . . . . Propulsion 5 | . 3 . . . . . . . 1 . . . . . . . . . . . . . . . 1 Utility 7 | . . . . . 4 1 . . . . . . . . 1 1 . . . . . . . . . Weapon 6 | . 1 1 . . . . . 1 . . . 1 . . . . . . . . . . . . 2 Tool/Special . | . . . . . . . . . . . . . . . . . . . . . . . . . . Average Slot Usage (%) 79 | . 100 100 100 100 71 98 92 78 76 84 84 83 88 93 93 93 78 94 71 70 93 88 89 58 60 Engine 5 | . 14 14 14 14 8 . . 1 7 7 7 2 6 6 6 6 2 5 4 7 . . . . . Core 1 | . . . . . . 7 7 . . . . 4 5 6 6 6 4 5 1 . . . . . . Reactor 2 | . . . . . . . . . . . . . . . . . . . . . 5 5 5 7 7 Treads 5 | . 27 28 28 28 . . . . . . . . . . . . . . . . . . . . 1 Hover 5 | . . . . . . . . . . . . . . . . . . 5 5 6 29 26 25 . 8 Flight 15 | . . . . . 8 44 46 46 46 46 46 45 45 46 46 46 35 35 15 12 11 10 9 1 1 Device 12 | . 14 14 14 14 15 7 7 11 7 15 15 14 12 13 13 13 12 17 11 11 17 15 18 10 10 Storage 3 | . 14 14 14 14 9 . . . . . . . . . . . . . . . . . . . . Processor 6 | . . . . . . . . . . . . . 2 6 6 6 7 11 15 16 11 10 13 10 8 Hackware 1 | . . . . . . . . . . . . . . . . . . . . . . 4 5 5 3 Protection 5 | . . . . . 11 21 15 7 7 7 7 7 6 6 6 6 4 5 5 4 5 5 . 11 5 Energy Gun 1 | . . . . . 8 . . . . . . . . . . . 1 . . . . . 1 3 2 Ballistic Gun 1 | . 10 . . . . . . 2 . . . . . . . . . . . . . . . 3 3 Ballistic Cannon 5 | . 18 28 28 28 6 7 7 . . . . . . . . . . . . . . . . . . Slashing Weapon 3 | . . . . . 3 7 7 7 7 7 7 7 6 6 6 5 5 5 5 4 10 10 8 1 . Peak Build Rating 143 | 7 11 12 15 16 57 60 38 37 39 39 39 40 49 49 55 55 65 59 59 135 131 137 143 97 136 Average Rating 59 | 5 10 11 13 15 50 41 36 32 36 39 39 37 45 49 49 50 46 59 51 56 130 136 134 88 93 On Entrance 50 | . 7 11 12 15 16 54 38 31 36 39 39 39 35 49 49 50 49 59 59 46 127 131 137 76 97 Naked Turns . | . . . . . . . . . . . . . . . . . . . . . . . . . . Heaviest Build 84 | 14 19 19 34 34 44 27 23 21 21 21 21 21 23 23 23 30 27 25 25 70 65 65 48 74 84 Greatest Support 145 | 40 40 40 40 40 50 30 25 30 25 25 25 30 36 36 36 36 36 27 27 68 68 68 55 23 145 Greatest Overweight (x) 24 | . . . . . . . . . . . . . . . . . . . 3 2 . 1 1 24 24 Average Overweight (x) . | . . . . . . . . . . . . . . . . . . . . . . . . 7 1 Largest Inventory Capacity 15 | 8 8 8 15 15 15 15 5 5 5 5 5 5 5 5 5 5 5 5 5 5 5 5 5 5 5 Average Capacity 6 | 7 8 8 11 15 15 5 5 5 5 5 5 5 5 5 5 5 5 5 5 5 5 5 5 5 5 Most Carried 15 | 5 8 8 14 15 15 11 5 5 5 5 5 5 5 4 5 5 5 5 5 5 3 4 5 3 5 Average Carried 5 | 3 7 7 10 14 13 4 5 4 4 5 5 4 2 4 4 4 3 5 4 4 2 2 3 1 2 Final Capacity 15 | 8 8 8 15 15 15 5 5 5 5 5 5 5 5 5 5 5 5 5 5 5 5 5 5 5 5 Final Carried 15 | 4 8 8 14 15 12 5 5 5 5 5 5 5 4 4 5 4 5 5 5 3 3 3 4 1 5 Class Distribution -------------------- 35% | Scavenger-Mutant 29% | Mutant 24% | Sprinter 5% | Infiltrator-Gladiator 3% | Infiltrator-Mutant Dominant Class ---------------- Mutant | -10/Materials Mutant | -10/Mines Mutant | -10/Exiles Mutant | -9/Mines Mutant | -8/Materials Sprinter | -7/Factory Sprinter | -7/Waste Mutant | -7/Factory Sprinter | -7/Lower Caves Sprinter | -7/Lower Caves Sprinter | -7/Data Miner Sprinter | -6/Proximity Caves Sprinter | -6/Factory Sprinter | -6/Lower Caves Sprinter | -6/Zion Sprinter | -5/Proximity Caves Sprinter | -5/Factory Sprinter | -5/Upper Caves Scavenger-Mutant | -5/Upper Caves Scavenger-Mutant | -5/Warlord Infiltrator-Gladiator | -4/Proximity Caves Infiltrator-Gladiator | -4/Factory Infiltrator-Gladiator | -4/Extension Scavenger-Mutant | -4/Cetus Scavenger-Mutant | -3/Research Resources | -11 -10 -10 -10 -9 -8 -7 -7 -7 -7 -7 -7 -6 -6 -6 -6 -5 -5 -5 -5 -5 -4 -4 -4 -4 -3 ----------- Run | Yrd Mat Min Exi Min Mat Fac Was Fac Low Low Dat Pro Fac Low Zio Pro Fac Upp Upp War Pro Fac Ext Cet Res Matter Collected 3225 | 231 103 . . 10 472 140 . . 50 . . 55 . . 70 . 350 90 70 185 15 . 73 82 1229 Remotely . | . . . . . . . . . . . . . . . . . . . . . . . . . . Salvage Created 4002 | 12 . 5 . . 796 . . . 57 . . 365 . . . . 241 74 245 . 121 . 484 288 1314 Parts 232 | 3 . 2 . . 39 . . . 5 . . 17 . . . . 16 2 16 . 9 . 16 10 97 Haulers Intercepted 2 | . . . . . 1 . . . . . . . . . . . 1 . . . . . . . . Recyclers Shooed 6 | . . . . . . . . . . . . . . . . . 2 . . . . . . . 4 Parts Field Recycled . | . . . . . . . . . . . . . . . . . . . . . . . . . . Retrieved Matter . | . . . . . . . . . . . . . . . . . . . . . . . . . . Parts Self-Destructed 49 | . . . . . . . . . 5 . . 14 . . . 8 . 2 11 . 9 . . . . Prevented 1 | . . . . . . . . . 1 . . . . . . . . . . . . . . . . Kills | -11 -10 -10 -10 -9 -8 -7 -7 -7 -7 -7 -7 -6 -6 -6 -6 -5 -5 -5 -5 -5 -4 -4 -4 -4 -3 ------- Run | Yrd Mat Min Exi Min Mat Fac Was Fac Low Low Dat Pro Fac Low Zio Pro Fac Upp Upp War Pro Fac Ext Cet Res Combat Hostiles Destroyed 75 | . . . . . 21 . . . 1 . . 8 . . . . 3 1 6 . 5 . 8 4 18 Melee 38 | . . . . . 5 . . . 1 . . 8 . . . . 3 1 6 . 5 . 7 2 . Guns 21 | . . . . . 4 . . . . . . . . . . . . . . . . . 1 2 14 Cannons 15 | . . . . . 11 . . . . . . . . . . . . . . . . . . . 4 Classes Destroyed 12 | 1 . 1 . . 7 . . . . . . . . . . . . . . . . . 2 . 1 Worker 4 | . . 1 . . 1 . . . . . . . . . . . . . . . . . . . 2 Builder 1 | . . . . . . . . . . . . . . . . . . . . . . . . . 1 Tunneler 1 | 1 . . . . . . . . . . . . . . . . . . . . . . . . . Hauler 2 | . . . . . 1 . . . . . . . . . . . 1 . . . . . . . . Mechanic 1 | . . . . . 1 . . . . . . . . . . . . . . . . . . . . Watcher 5 | . . . . . 1 . . . . . . . . . . . 2 . . . . . . . 2 Swarmer 24 | . . . . . 6 . . . . . . 4 . . . . 3 . 4 . 5 . 2 . . Grunt 17 | . . . . . 11 . . . . . . 2 . . . . . 1 . . . . 2 . 1 Sentry 8 | . . . . . 3 . . . . . . 1 . . . . . . 1 . . . 2 . 1 Hunter 6 | . . . . . 1 . . . 1 . . 1 . . . . . . 1 . . . . . 2 Programmer 15 | . . . . . . . . . . . . . . . . . . . . . . . 1 . 14 Behemoth 1 | . . . . . . . . . . . . . . . . . . . . . . . 1 . . Cetus Guard 4 | . . . . . . . . . . . . . . . . . . . . . . . . 4 . Best Kill Streak 6 | 1 . 1 . . 6 . . . 1 . . 4 . . . . 2 1 4 . 4 . 2 2 4 Combat Bots Only 6 | . . . . . 6 . . . 1 . . 4 . . . . 2 1 4 . 4 . 2 2 4 Max Kills in Single Turn 2 | 1 . 1 . . 2 . . . 1 . . 1 . . . . 1 1 1 . 1 . 1 1 1 Gunslinging . | . . . . . . . . . . . . . . . . . . . . . . . . . . Exploded . | . . . . . . . . . . . . . . . . . . . . . . . . . . Melee 1 | . . . . . 1 . . . 1 . . 1 . . . . 1 1 1 . 1 . 1 1 . Uniques/NPCs Destroyed . | . . . . . . . . . . . . . . . . . . . . . . . . . . Combat | -11 -10 -10 -10 -9 -8 -7 -7 -7 -7 -7 -7 -6 -6 -6 -6 -5 -5 -5 -5 -5 -4 -4 -4 -4 -3 -------- Run | Yrd Mat Min Exi Min Mat Fac Was Fac Low Low Dat Pro Fac Low Zio Pro Fac Upp Upp War Pro Fac Ext Cet Res Hostile Shots Fired 1044 | . . . . . 129 . 1 . 2 . . 70 . . . 13 47 1 48 55 34 . 118 103 423 Missed 345 | . . . . . 50 . . . 1 . . 23 . . . 5 21 . 9 16 15 . 45 36 124 Hits 699 | . . . . . 79 . 1 . 1 . . 47 . . . 8 26 1 39 39 19 . 73 67 299 Melee 1 | . . . . . . . 1 . . . . . . . . . . . . . . . . . . Projectile 698 | . . . . . 79 . . . 1 . . 47 . . . 8 26 1 39 39 19 . 73 67 299 Critical Strikes 48 | . . . . . 5 . 1 . . . . . . . . . . . 1 4 . . 3 6 28 Part Disruptions 5 | . . . . . . . . . . . . . . . . . . . . . . . . . 5 Damage Taken 14887 | . . . . . 1247 . 33 . 21 . . 675 . . . 69 376 20 674 683 166 4 1604 1913 7402 Core 3289 | . . . . . 224 . . . 21 . . 110 . . . . 179 . 149 156 29 . 459 651 1311 Absorbed by Shields 566 | . . . . . . . . . . . . . . . . . . . . 126 154 3 30 . 253 Regen/Repaired (Parts) 103 | . . . . . . . . . . . . . . . 50 . . . . 53 . . . . . Core Remaining (%) 70 | 100 . . . 100 59 . . . . . . 81 . . . 100 . . . . 48 . . 3 . Volleys Fired 248 | 6 . . . . 62 . . . . . . 1 . . . 14 1 . . . . . 13 5 146 Largest 2 | 2 . . . . 2 . . . . . . 1 . . . 1 1 . . . . . 1 1 2 Hottest 122 | 40 . . . . 122 . . . . . . 100 . . . 39 55 . . . . . 65 80 115 Shots Fired 336 | 12 . . . . 103 . . . . . . 1 . . . 14 1 . . . . . 13 5 187 Gun 253 | 12 . . . . 58 . . . . . . . . . . . 1 . . . . . 13 5 164 Cannon 68 | . . . . . 45 . . . . . . . . . . . . . . . . . . . 23 Launcher 14 | . . . . . . . . . . . . . . . . 14 . . . . . . . . . Special 1 | . . . . . . . . . . . . 1 . . . . . . . . . . . . . Kinetic 195 | 12 . . . . 45 . . . . . . . . . . . . . . . . . . . 138 Thermal 105 | . . . . . 58 . . . . . . 1 . . . . . . . . . . . 5 41 Explosive 14 | . . . . . . . . . . . . . . . . 14 . . . . . . . . . Electromagnetic 22 | . . . . . . . . . . . . . . . . . 1 . . . . . 13 . 8 Robot Hit Streak 19 | 3 . . . . 13 . . . . . . 1 . . . . . . . . . . 12 17 19 Robot Miss Streak 12 | 1 . . . . 12 . . . . . . . . . . . . . . . . . 1 . 4 Penetration Max 1 | . . . . . . . . . . . . . . . . . . . . . . . . . 1 Secondary Targets . | . . . . . . . . . . . . . . . . . . . . . . . . . . Shots Hit Robots 308 | 9 . . . . 91 . . . 1 . . 19 . . . . 13 1 12 . 9 . 34 22 97 Core Hits 166 | 1 . . . . 57 . . . 1 . . 10 . . . . 6 1 8 . 6 . 18 11 47 Critical Kills 5 | . . . . . . . . . . . . . . . . . . . . . . . . . 5 Critical Parts Destroyed 4 | . . . . . . . . . . . . . . . . . . . . . . . . . 4 Critical Strikes 25 | . . . . . 5 . . . . . . 2 . . . . . . 1 . 2 . 1 4 10 Burn 3 | . . . . . 3 . . . . . . . . . . . . . . . . . . . . Destroy 9 | . . . . . . . . . . . . . . . . . . . . . . . . . 9 Blast 1 | . . . . . . . . . . . . . . . . . . . . . . . . . 1 Sever 12 | . . . . . 2 . . . . . . 2 . . . . . . 1 . 2 . 1 4 . Melee Attacks 233 | . . . . . 14 . . 8 1 . . 25 19 . . . 73 1 17 . 14 . 44 17 . Impact . | . . . . . . . . . . . . . . . . . . . . . . . . . . Slashing 233 | . . . . . 14 . . 8 1 . . 25 19 . . . 73 1 17 . 14 . 44 17 . Piercing . | . . . . . . . . . . . . . . . . . . . . . . . . . . Sneak Attacks 7 | . . . . . . . . . . . . . . . . . 2 1 . . . . 4 . . Combat Hostiles 5 | . . . . . . . . . . . . . . . . . . 1 . . . . 4 . . Follow-up Attacks 1 | . . . . . . . . . . . . . . . . . . . . . . . 1 . . Damage Inflicted 10049 | 109 . 1 . . 1889 . . . 52 . . 868 . . . 327 630 75 481 . 354 15 1197 807 3244 Guns 3816 | 109 . . . . 815 . . . . . . . . . . . . . . . . . 103 143 2646 Cannons 1256 | . . . . . 717 . . . . . . . . . . . . . . . . . . . 539 Explosions 404 | . . . . . . . . . . . . . . . . 327 . . . . . . 77 . . Melee 4488 | . . . . . 357 . . . 52 . . 858 . . . . 630 75 481 . 354 . 1017 664 . Ramming 75 | . . 1 . . . . . . . . . . . . . . . . . . . 15 . . 59 Kinetic 3205 | 109 . . . . 717 . . . . . . . . . . . . . . . . . . . 2379 Thermal 1661 | . . . . . 815 . . . . . . 10 . . . . . . . . . . 77 143 616 Explosive 327 | . . . . . . . . . . . . . . . . 327 . . . . . . . . . Electromagnetic 293 | . . . . . . . . . . . . . . . . . . . . . . . 103 . 190 Impact . | . . . . . . . . . . . . . . . . . . . . . . . . . . Slashing 4488 | . . . . . 357 . . . 52 . . 858 . . . . 630 75 481 . 354 . 1017 664 . Piercing . | . . . . . . . . . . . . . . . . . . . . . . . . . . Highest Corruption 66 | . . . . . 2 . . . . . . . . . . . 2 2 2 2 . . 4 4 66 Average Corruption 13 | . . . . . 2 . . . . . . . . . . . 2 2 2 2 . . 3 4 20 Corruption Purged . | . . . . . . . . . . . . . . . . . . . . . . . . . . Corruption Blocked . | . . . . . . . . . . . . . . . . . . . . . . . . . . Effects 134 | . . . . . 7 . . . . . . . . . . . . 1 5 1 . . 2 12 106 Message Errors 22 | . . . . . 2 . . . . . . . . . . . . . . . . . . 3 17 Matter Fused 25 | . . . . . . . . . . . . . . . . . . . 1 . . . . 5 19 Heat Flow Errors 15 | . . . . . . . . . . . . . . . . . . . 2 1 . . . 1 11 Energy Discharges 11 | . . . . . 2 . . . . . . . . . . . . . 1 . . . . 2 6 Parts Rejected 4 | . . . . . . . . . . . . . . . . . . . . . . . . . 4 Parts Fused 4 | . . . . . . . . . . . . . . . . . . . . . . . . . 4 Data Loss (minor) 18 | . . . . . 2 . . . . . . . . . . . . . 1 . . . 2 . 13 Data Loss (major) 8 | . . . . . . . . . . . . . . . . . . 1 . . . . . 1 6 Misfires 7 | . . . . . . . . . . . . . . . . . . . . . . . . . 7 Alerts 2 | . . . . . 1 . . . . . . . . . . . . . . . . . . . 1 Misdirections 12 | . . . . . . . . . . . . . . . . . . . . . . . . . 12 Weapon Failures 6 | . . . . . . . . . . . . . . . . . . . . . . . . . 6 Overload Shots . | . . . . . . . . . . . . . . . . . . . . . . . . . . Overflow Damage 147 | . . . . . . . . . . . . . . . . . 90 . . . . . 17 . 40 Projectiles 40 | . . . . . . . . . . . . . . . . . . . . . . . . . 40 Explosions . | . . . . . . . . . . . . . . . . . . . . . . . . . . Melee 107 | . . . . . . . . . . . . . . . . . 90 . . . . . 17 . . Knockbacks 20 | . . . . . 17 . . . . . . . . . . . . . . . . . . . 3 Impact 1 | . . . . . . . . . . . . . . . . . . . . . . . . . 1 Kinetic 18 | . . . . . 16 . . . . . . . . . . . . . . . . . . . 2 Secondary 1 | . . . . . 1 . . . . . . . . . . . . . . . . . . . . Self-Inflicted Damage 192 | . . . . . . . . . . . . . . . . 47 . . . . . 7 113 . 25 Shots 3 | . . . . . . . . . . . . . . . . 2 . . . . . . 1 . . Rammed 16 | . . . . . . . . . . . . . . . . . . . . . . 1 . . 15 Targets Rammed 17 | . . 1 . . . . . . . . . . . . . . . . . . . 1 . . 15 Kicked . | . . . . . . . . . . . . . . . . . . . . . . . . . . Crushed 1 | . . 1 . . . . . . . . . . . . . . . . . . . . . . . Highest Temperature 576 | . . . . . 576 372 104 . . . . 14 . . . 2 . . 132 45 5 . . 119 481 Average Temperature 151 | . . . . . 200 171 55 . . . . 2 . . . 2 . . 63 18 1 . . 42 110 Received Heat Transfer 1497 | . . . . . 567 . . . . . . 90 . . . . . 9 27 72 26 . 192 288 226 Effects 37 | . . . . . 30 3 . . . . . . . . . . . . . . . . . . 4 Shutdowns 11 | . . . . . 9 1 . . . . . . . . . . . . . . . . . . 1 Energy Bleed 5 | . . . . . 1 2 . . . . . . . . . . . . . . . . . . 2 Interference 9 | . . . . . 9 . . . . . . . . . . . . . . . . . . . . Matter Decay 3 | . . . . . 3 . . . . . . . . . . . . . . . . . . . . Short Circuit 2 | . . . . . 1 . . . . . . . . . . . . . . . . . . . 1 Damage (minor) 3 | . . . . . 3 . . . . . . . . . . . . . . . . . . . . Damage (major) 3 | . . . . . 3 . . . . . . . . . . . . . . . . . . . . Damage (core) 1 | . . . . . 1 . . . . . . . . . . . . . . . . . . . . Siege Activations . | . . . . . . . . . . . . . . . . . . . . . . . . . . Martial Activations . | . . . . . . . . . . . . . . . . . . . . . . . . . . Shielding Activations . | . . . . . . . . . . . . . . . . . . . . . . . . . . Robots Disrupted 1 | . . . . . . . . . . . . . . . . . . . . . . . 1 . . Combat Hostiles 1 | . . . . . . . . . . . . . . . . . . . . . . . 1 . . Robots Corrupted . | . . . . . . . . . . . . . . . . . . . . . . . . . . Combat Hostiles . | . . . . . . . . . . . . . . . . . . . . . . . . . . Parts Fried 2 | . . . . . . . . . . . . . . . . . . . . . . . 1 . 1 Impact Corruptions . | . . . . . . . . . . . . . . . . . . . . . . . . . . Robots Melted 1 | . . . . . 1 . . . . . . . . . . . . . . . . . . . . Combat Hostiles 1 | . . . . . 1 . . . . . . . . . . . . . . . . . . . . Parts Melted 9 | . . . . . 6 . . . . . . . . . . . . . . . . . . . 3 Heat Transferred 3194 | . . . . . 1998 . . . . . . 80 . . . . . . . . . . 50 185 881 Parts Sabotaged . | . . . . . . . . . . . . . . . . . . . . . . . . . . Parts Stolen . | . . . . . . . . . . . . . . . . . . . . . . . . . . Parts Stripped . | . . . . . . . . . . . . . . . . . . . . . . . . . . Power Chain Reactions . | . . . . . . . . . . . . . . . . . . . . . . . . . . Alert | -11 -10 -10 -10 -9 -8 -7 -7 -7 -7 -7 -7 -6 -6 -6 -6 -5 -5 -5 -5 -5 -4 -4 -4 -4 -3 ------- Run | Yrd Mat Min Exi Min Mat Fac Was Fac Low Low Dat Pro Fac Low Zio Pro Fac Upp Upp War Pro Fac Ext Cet Res Maximum Alert Level 2 | . . . . . 1 . . . . . . . . . . . 2 . . . . . . . 1 Low Security (%) 83 | 100 100 100 . 100 81 100 100 100 . . . . 100 . . . . . . . . 100 100 100 86 Level 1 13 | . . . . . 18 . . . . . . . . . . . 68 . . . . . . . 13 Level 2 2 | . . . . . . . . . . . . . . . . . 31 . . . . . . . . Level 3 . | . . . . . . . . . . . . . . . . . . . . . . . . . . Level 4 . | . . . . . . . . . . . . . . . . . . . . . . . . . . Level 5 . | . . . . . . . . . . . . . . . . . . . . . . . . . . High Security . | . . . . . . . . . . . . . . . . . . . . . . . . . . Max Security . | . . . . . . . . . . . . . . . . . . . . . . . . . . Peak Influence 450 | 5 10 5 . . 366 165 . 15 . . . . 15 . . . 450 . . . . 35 119 40 347 Initial 450 | . . . . . . 165 . . . . . . 15 . . . 450 . . . . 35 . 21 . Average 71 | . . . . . 104 74 . 1 . . . . 1 . . . 356 . . . . 8 42 5 58 Influence Increases 3555 | 5 19 5 . . 663 15 . 29 30 . . 185 17 . . 40 741 80 185 . 170 . 417 80 874 Destroy 0b10 Robot/C 1540 | . . . . . 420 . . . 20 . . 160 . . . 20 60 20 120 . 100 . 180 80 360 Destroy 0b10 Robot/NC 85 | 5 . 5 . . 20 . . . . . . 5 . . . 10 15 . . . . . . . 25 Destroy Leader 304 | . . . . . 124 . . . 10 . . 20 . . . 10 16 . 20 . 10 . 10 . 84 Allied During Kill 48 | . . . . . . . . . . . . . . . . . . . . . . . 48 . . Successful Hack 67 | . 19 . . . 21 . . 8 . . . . . . . . 6 . . . . . 13 . . Disable Machine 75 | . . . . . 15 . . . . . . . . . . . 15 . . . . . 30 . 15 Destroy Structure 176 | . . . . . 3 . . 6 . . . . 17 . . . 74 . . . . . 46 . 30 Advance Influence 450 | . . . . . . . . . . . . . . . . . 450 . . . . . . . . Partial Spotted 90 | . . . . . 15 15 . 15 . . . . . . . . . . . . . . 30 . 15 Lose Combat Pursuer 720 | . . . . . 45 . . . . . . . . . . . 105 60 45 . 60 . 60 . 345 Influence Decreases 3264 | 5 19 5 . . 297 381 . 28 31 . . 160 42 . . 40 374 167 314 151 113 57 378 119 583 Entered New Map 594 | . . . . . . 201 . . 1 . . . 10 . . . . 137 54 151 . 22 . 18 . Time Decay 1951 | 5 19 5 . . 287 180 . 28 30 . . 120 32 . . 40 334 30 180 . 113 35 179 71 263 Lost Part 620 | . . . . . 10 . . . . . . 40 . . . . 40 . 80 . . . 100 30 320 Lost Ally 99 | . . . . . . . . . . . . . . . . . . . . . . . 99 . . Squads Dispatched 26 | . 1 . . . 8 1 . 2 . . . . . . . . 1 . . . . . 1 . 12 Investigation 3 | . . . . . 2 1 . . . . . . . . . . . . . . . . . . . Extermination 9 | . . . . . . . . 1 . . . . . . . . 1 . . . . . . . 7 Reinforcement 11 | . 1 . . . 3 . . 1 . . . . . . . . . . . . . . 1 . 5 Assault . | . . . . . . . . . . . . . . . . . . . . . . . . . . Garrison 3 | . . . . . 3 . . . . . . . . . . . . . . . . . . . . Intercept . | . . . . . . . . . . . . . . . . . . . . . . . . . . Searches Triggered . | . . . . . . . . . . . . . . . . . . . . . . . . . . Data Miner Redirects 1 | . . . . . . . . . . . . . . . . . . . . . . . . . 1 Construction Impeded . | . . . . . . . . . . . . . . . . . . . . . . . . . . Haulers Reinforced 1 | . . . . . . . . . . . . . . . . . . . . . . . . . 1 Active Scanning Responses . | . . . . . . . . . . . . . . . . . . . . . . . . . . Cargo Convoy Interrupts 1 | . . . . . . . . . . . . . . . . . . . . . . . . . 1 Stealth | -11 -10 -10 -10 -9 -8 -7 -7 -7 -7 -7 -7 -6 -6 -6 -6 -5 -5 -5 -5 -5 -4 -4 -4 -4 -3 --------- Run | Yrd Mat Min Exi Min Mat Fac Was Fac Low Low Dat Pro Fac Low Zio Pro Fac Upp Upp War Pro Fac Ext Cet Res Distress Signals 14 | . 1 . . . 2 . . . . . . . . . . . . . . 1 . . 5 1 4 Communications Jammed 42 | . . . . . . . . . . . . . . . . . . . . 3 . . 39 . . Distress Signals 42 | . . . . . . . . . . . . . . . . . . . . 3 . . 39 . . Times Spotted 194 | . . . . . 36 1 6 1 1 . . 9 . . . 1 15 4 8 19 10 1 25 5 52 Peak Tracking Total 18 | . . . . . 5 1 6 1 . . . 4 . . . 1 6 4 5 18 3 1 13 5 11 Tactical Retreats 22 | . . . . . 4 . . . . . . . . . . . 2 1 1 . 2 . 3 . 9 Traps | -11 -10 -10 -10 -9 -8 -7 -7 -7 -7 -7 -7 -6 -6 -6 -6 -5 -5 -5 -5 -5 -4 -4 -4 -4 -3 ------- Run | Yrd Mat Min Exi Min Mat Fac Was Fac Low Low Dat Pro Fac Low Zio Pro Fac Upp Upp War Pro Fac Ext Cet Res Traps Triggered 12 | . . . . . 1 1 . 2 . . . . . . . . 3 . . . . . 3 . 2 Indirectly . | . . . . . . . . . . . . . . . . . . . . . . . . . . Trap Hack Attempts . | . . . . . . . . . . . . . . . . . . . . . . . . . . Triggered . | . . . . . . . . . . . . . . . . . . . . . . . . . . Disarmed . | . . . . . . . . . . . . . . . . . . . . . . . . . . Reprogrammed . | . . . . . . . . . . . . . . . . . . . . . . . . . . Reused . | . . . . . . . . . . . . . . . . . . . . . . . . . . Traps Extracted . | . . . . . . . . . . . . . . . . . . . . . . . . . . Installed . | . . . . . . . . . . . . . . . . . . . . . . . . . . Triggered . | . . . . . . . . . . . . . . . . . . . . . . . . . . Machines | -11 -10 -10 -10 -9 -8 -7 -7 -7 -7 -7 -7 -6 -6 -6 -6 -5 -5 -5 -5 -5 -4 -4 -4 -4 -3 ---------- Run | Yrd Mat Min Exi Min Mat Fac Was Fac Low Low Dat Pro Fac Low Zio Pro Fac Upp Upp War Pro Fac Ext Cet Res Machines Disabled 6 | . . . . . 1 . . . . . . . . . . . 1 . . . . . 3 . 1 Max in Single Turn 1 | . . . . . 1 . . . . . . . . . . . 1 . . . . . 1 . 1 Garrison Access 4 | . . . . . 1 . . 1 . . . . . . . . 2 . . . . . . . . Energy Cycler 1 | . . . . . . . . . . . . . . . . . . . . . . . 1 . . Machines Repaired . | . . . . . . . . . . . . . . . . . . . . . . . . . . Machines Dismantled . | . . . . . . . . . . . . . . . . . . . . . . . . . . Machines Sabotaged . | . . . . . . . . . . . . . . . . . . . . . . . . . . Overloaded Fab Kills . | . . . . . . . . . . . . . . . . . . . . . . . . . . Hacking | -11 -10 -10 -10 -9 -8 -7 -7 -7 -7 -7 -7 -6 -6 -6 -6 -5 -5 -5 -5 -5 -4 -4 -4 -4 -3 --------- Run | Yrd Mat Min Exi Min Mat Fac Was Fac Low Low Dat Pro Fac Low Zio Pro Fac Upp Upp War Pro Fac Ext Cet Res Machines Accessed 45 | . 3 1 1 1 5 1 . 5 . . 4 . 2 . . . 5 1 . 9 . . 6 . 1 Terminals 23 | . 3 1 . . 4 1 . 3 . . . . 2 . . . 1 1 . . . . 6 . 1 Fabricators 1 | . . . . . . . . 1 . . . . . . . . . . . . . . . . . Repair Stations 1 | . . . . . . . . . . . . . . . . . 1 . . . . . . . . Recycling Units 1 | . . . . . . . . . . . . . . . . . 1 . . . . . . . . Scanalyzers . | . . . . . . . . . . . . . . . . . . . . . . . . . . Garrison Access 4 | . . . . . 1 . . 1 . . . . . . . . 2 . . . . . . . . Total Hacks 112 | . 11 2 1 1 11 3 . 12 . . 28 . 2 . . . 8 1 . 17 . . 9 . 6 Successful 71 | . 4 1 1 1 4 . . 4 . . 28 . 1 . . . 3 1 . 17 . . 5 . 1 Failed 41 | . 7 1 . . 7 3 . 8 . . . . 1 . . . 5 . . . . . 4 . 5 Catastrophic 12 | . 2 . . . 3 . . 1 . . . . 1 . . . 2 . . . . . 1 . 2 Database Lockouts . | . . . . . . . . . . . . . . . . . . . . . . . . . . Manual 43 | . 11 2 1 . 10 1 . 8 . . . . 1 . . . 2 . . 1 . . 1 . 5 Terminals 55 | . 11 2 . . 10 3 . 9 . . . . 2 . . . 2 1 . . . . 9 . 6 Fabricators 1 | . . . . . . . . 1 . . . . . . . . . . . . . . . . . Repair Stations 1 | . . . . . . . . . . . . . . . . . 1 . . . . . . . . Recycling Units 1 | . . . . . . . . . . . . . . . . . 1 . . . . . . . . Scanalyzers . | . . . . . . . . . . . . . . . . . . . . . . . . . . Garrison Access 7 | . . . . . 1 . . 2 . . . . . . . . 4 . . . . . . . . Terminal Hacks 58 | . 1 1 1 1 . . . 1 . . 28 . 1 . . . . 1 . 17 . . 5 . 1 Record 24 | . . . . . . . . . . . 11 . . . . . . 1 . 10 . . 1 . 1 Part Schematic 10 | . . . . . . . . . . . 10 . . . . . . . . . . . . . . Robot Schematic 4 | . . . . . . . . . . . 4 . . . . . . . . . . . . . . Prototype ID Bank 9 | . . . . . . . . . . . 3 . . . . . . . . 6 . . . . . Open Door 5 | . . . . 1 . . . . . . . . . . . . . . . 1 . . 3 . . Open DSF 1 | . . . . . . . . . . . . . 1 . . . . . . . . . . . . Branch Access Points 2 | . 1 . . . . . . 1 . . . . . . . . . . . . . . . . . Zone Layout 2 | . . 1 . . . . . . . . . . . . . . . . . . . . 1 . . Proto ID Catalog 1 | . . . 1 . . . . . . . . . . . . . . . . . . . . . . Fabricator Hacks 1 | . . . . . . . . 1 . . . . . . . . . . . . . . . . . Network Status 1 | . . . . . . . . 1 . . . . . . . . . . . . . . . . . Repair Station Hacks 1 | . . . . . . . . . . . . . . . . . 1 . . . . . . . . Refit 1 | . . . . . . . . . . . . . . . . . 1 . . . . . . . . Recycling Unit Hacks . | . . . . . . . . . . . . . . . . . . . . . . . . . . Scanalyzer . | . . . . . . . . . . . . . . . . . . . . . . . . . . Garrison Access Hacks 4 | . . . . . 1 . . 1 . . . . . . . . 2 . . . . . . . . Seal Access 4 | . . . . . 1 . . 1 . . . . . . . . 2 . . . . . . . . Unauthorized Hacks 7 | . 3 . . . 3 . . 1 . . . . . . . . . . . . . . . . . Terminals 7 | . 3 . . . 3 . . 1 . . . . . . . . . . . . . . . . . Botnet 7 | . 3 . . . 3 . . 1 . . . . . . . . . . . . . . . . . Fabricators . | . . . . . . . . . . . . . . . . . . . . . . . . . . Repair Stations . | . . . . . . . . . . . . . . . . . . . . . . . . . . Recycling Units . | . . . . . . . . . . . . . . . . . . . . . . . . . . Scanalyzers . | . . . . . . . . . . . . . . . . . . . . . . . . . . Garrison Access . | . . . . . . . . . . . . . . . . . . . . . . . . . . Data Cores Recovered . | . . . . . . . . . . . . . . . . . . . . . . . . . . Used . | . . . . . . . . . . . . . . . . . . . . . . . . . . Hacking Detections 21 | . 3 1 . . 4 1 . 4 . . . . 1 . . . 2 . . . . . 4 . 1 Full Trace Events 5 | . 2 . . . 2 1 . . . . . . . . . . . . . . . . . . . Feedback Events . | . . . . . . . . . . . . . . . . . . . . . . . . . . Feedback Blocked . | . . . . . . . . . . . . . . . . . . . . . . . . . . Robot Schematics Acquired 7 | . . . . . . . . . . . 4 . . . 3 . . . . . . . . . . Robots Built . | . . . . . . . . . . . . . . . . . . . . . . . . . . Authchips . | . . . . . . . . . . . . . . . . . . . . . . . . . . Time . | . . . . . . . . . . . . . . . . . . . . . . . . . . Total Robot Build Rating . | . . . . . . . . . . . . . . . . . . . . . . . . . . Part Schematics Acquired 25 | . . . . . . . . . . . 10 . . . 15 . . . . . . . . . . Parts Built . | . . . . . . . . . . . . . . . . . . . . . . . . . . Authchips . | . . . . . . . . . . . . . . . . . . . . . . . . . . Time . | . . . . . . . . . . . . . . . . . . . . . . . . . . Total Part Build Rating . | . . . . . . . . . . . . . . . . . . . . . . . . . . Parts Repaired . | . . . . . . . . . . . . . . . . . . . . . . . . . . Time . | . . . . . . . . . . . . . . . . . . . . . . . . . . Parts Recycled . | . . . . . . . . . . . . . . . . . . . . . . . . . . Recycled Matter . | . . . . . . . . . . . . . . . . . . . . . . . . . . Retrieved Matter . | . . . . . . . . . . . . . . . . . . . . . . . . . . Retrieved Components . | . . . . . . . . . . . . . . . . . . . . . . . . . . Parts Scanalyzed . | . . . . . . . . . . . . . . . . . . . . . . . . . . Part Schematics Acquired . | . . . . . . . . . . . . . . . . . . . . . . . . . . Parts Damaged . | . . . . . . . . . . . . . . . . . . . . . . . . . . Bothacking | -11 -10 -10 -10 -9 -8 -7 -7 -7 -7 -7 -7 -6 -6 -6 -6 -5 -5 -5 -5 -5 -4 -4 -4 -4 -3 ------------ Run | Yrd Mat Min Exi Min Mat Fac Was Fac Low Low Dat Pro Fac Low Zio Pro Fac Upp Upp War Pro Fac Ext Cet Res Used RIF Installer . | . . . . . . . . . . . . . . . . . . . . . . . . . . Robots Hacked . | . . . . . . . . . . . . . . . . . . . . . . . . . . Non-combat . | . . . . . . . . . . . . . . . . . . . . . . . . . . Combat . | . . . . . . . . . . . . . . . . . . . . . . . . . . Robot Hacks Applied . | . . . . . . . . . . . . . . . . . . . . . . . . . . Relay Couplers Released . | . . . . . . . . . . . . . . . . . . . . . . . . . . Fabnet Peak Effective % . | . . . . . . . . . . . . . . . . . . . . . . . . . . Robots Rewired 7 | . . . . . . . . . . . . . . . . . . . . . . . 7 . . Allies Hacked . | . . . . . . . . . . . . . . . . . . . . . . . . . . Hacks Repelled . | . . . . . . . . . . . . . . . . . . . . . . . . . . Allies | -11 -10 -10 -10 -9 -8 -7 -7 -7 -7 -7 -7 -6 -6 -6 -6 -5 -5 -5 -5 -5 -4 -4 -4 -4 -3 -------- Run | Yrd Mat Min Exi Min Mat Fac Was Fac Low Low Dat Pro Fac Low Zio Pro Fac Upp Upp War Pro Fac Ext Cet Res Total Allies 11 | . . . . . . . . . . . . . . . 2 . . . . . . . 9 . . Largest Group 8 | . . . . . . . . . . . . . . . 2 2 . . . . . . 8 . . Highest-Rated Group 345 | . . . . . . . . . . . . . . . 70 70 . . . . . . 345 . . Highest-Rated Ally 51 | . . . . . . . . . . . . . . . 39 39 . . . . . . 51 . . Total Orders . | . . . . . . . . . . . . . . . . . . . . . . . . . . Ally Attacks 63 | . . . . . . . . . . . . . . . . 29 . . . . . . 34 . . Total Damage 1426 | . . . . . . . . . . . . . . . . 185 . . . . . . 1241 . . Kills 4 | . . . . . . . . . . . . . . . . 3 . . . . . . 1 . . Allies Corrupted . | . . . . . . . . . . . . . . . . . . . . . . . . . . Allies Melted 1 | . . . . . . . . . . . . . . . . . . . . 1 . . . . . Intel | -11 -10 -10 -10 -9 -8 -7 -7 -7 -7 -7 -7 -6 -6 -6 -6 -5 -5 -5 -5 -5 -4 -4 -4 -4 -3 ------- Run | Yrd Mat Min Exi Min Mat Fac Was Fac Low Low Dat Pro Fac Low Zio Pro Fac Upp Upp War Pro Fac Ext Cet Res Active Infowar (turns) 10026 | 3 267 497 1317 418 644 438 25 250 108 95 23 296 . . . . 282 78 367 1726 404 176 483 343 1786 Optics 2251 | . . . . . . . . . . . . . . . . . 282 78 367 1524 . . . . . Sensors 13 | . . . . . 13 . . . . . . . . . . . . . . . . . . . . Seismic 4703 | 3 267 497 1317 418 644 438 25 250 108 95 23 296 . . . . . . . . . . . . 322 Cloaking 3025 | . . . . . . . . . . . . . . . . . . . . 202 404 176 454 325 1464 Jamming 1276 | . . . . . . . . . . . . . . . . . . . . 195 404 176 483 18 . ECM 365 | . . . . . 365 . . . . . . . . . . . . . . . . . . . . Robot Analysis Total . | . . . . . . . . . . . . . . . . . . . . . . . . . . Derelict Logs Recovered 11 | . . . . . . . . . 1 . . 2 . . . 3 . 3 1 . 1 . . . . Drone Launches . | . . . . . . . . . . . . . . . . . . . . . . . . . . Drone Recoveries . | . . . . . . . . . . . . . . . . . . . . . . . . . . Exploration | -11 -10 -10 -10 -9 -8 -7 -7 -7 -7 -7 -7 -6 -6 -6 -6 -5 -5 -5 -5 -5 -4 -4 -4 -4 -3 ------------- Run | Yrd Mat Min Exi Min Mat Fac Was Fac Low Low Dat Pro Fac Low Zio Pro Fac Upp Upp War Pro Fac Ext Cet Res Turns Passed 13103 | 176 267 497 1317 418 669 438 25 250 108 95 23 338 444 5 433 321 755 78 367 1730 404 176 483 477 2809 Spaces Moved 13791 | 99 156 283 821 197 587 510 85 424 311 337 83 958 296 14 1176 998 1251 331 509 1447 782 136 407 99 1494 Core 304 | 15 . . . . . . . . . . . . . . . . . . . . . . . 36 253 Treads 1787 | 84 156 283 821 197 . . . . . . . . . . . . . . . . . . . . 246 Legs 282 | . . . . . . . . . . . . . . . . . . . . . . . . . 282 Wheels . | . . . . . . . . . . . . . . . . . . . . . . . . . . Hover 3749 | . . . . . . . . . . . . . . . . . . . 298 1429 782 136 407 . 697 Flight 7669 | . . . . . 587 510 85 424 311 337 83 958 296 14 1176 998 1251 331 211 18 . . . 63 16 Fastest Speed 21 | 50 160 160 160 160 50 25 28 25 28 28 28 24 21 21 21 21 21 22 22 26 46 46 48 34 36 Average Speed 69 | 143 160 160 160 160 50 25 29 33 30 28 28 25 21 21 21 21 22 22 60 111 46 90 54 407 146 Slowest Speed 1250 | 160 160 160 160 160 50 28 34 37 31 28 28 28 24 21 21 21 34 22 275 220 46 132 160 1250 1250 Overloaded Moves . | . . . . . . . . . . . . . . . . . . . . . . . . . . Propulsion Burnouts . | . . . . . . . . . . . . . . . . . . . . . . . . . . Robots Hopped 10 | . . . . . 3 . . . . . . . . . . . 6 . . . . . . . 1 Potential Cave-ins 22 | . . . . . . . . 2 . . . . . . . . 11 . . . . . 9 . . Cave-ins Triggered . | . . . . . . . . . . . . . . . . . . . . . . . . . . Exploration Rate (%) 50 | 6 28 65 92 39 46 16 91 15 48 37 70 90 8 3 88 87 35 65 53 94 82 4 72 23 48 Regions Visited 25 Branch Regions 16 Pre-discovered Areas 7 | . . . . . . . . . 1 . 1 . . . 2 1 . 1 1 . . . . . . Known Exits Taken 6 | . 1 . . . . . . 1 . . . . 1 . . . 1 1 . . 1 . . . . Unknown Exits Taken 17 | 1 . 1 1 1 1 . . . 1 1 1 1 . 1 1 1 . . 1 1 . 1 1 1 . Scrap Searched 20 | . . . . 1 . . . . 6 1 . 2 . 1 3 1 . 4 . . 1 . . . . Spaces Dug 125 | . . . . . . . . 8 . . . . 19 . . 46 50 . . . . . . . 2 Terrain Destroyed 248 | . . . . . 3 . . 8 . . . . 19 . . 118 50 . . . . . 30 . 20 Melee 77 | . . . . . . . . 8 . . . . 19 . . . 50 . . . . . . . . Projectile 22 | . . . . . 3 . . . . . . . . . . . . . . . . . . . 19 AOE 148 | . . . . . . . . . . . . . . . . 118 . . . . . . 30 . . Terrain Rammed . | . . . . . . . . . . . . . . . . . . . . . . . . . . Walls Destroyed . | . . . . . . . . . . . . . . . . . . . . . . . . . . Machines Disabled . | . . . . . . . . . . . . . . . . . . . . . . . . . . Actions | -11 -10 -10 -10 -9 -8 -7 -7 -7 -7 -7 -7 -6 -6 -6 -6 -5 -5 -5 -5 -5 -4 -4 -4 -4 -3 --------- Run | Yrd Mat Min Exi Min Mat Fac Was Fac Low Low Dat Pro Fac Low Zio Pro Fac Upp Upp War Pro Fac Ext Cet Res Total 16596 | 122 175 327 825 300 841 822 84 516 320 336 82 1006 648 15 1362 1099 1614 333 540 1563 807 188 596 154 1921 Wait 1793 | . . 42 . 103 129 286 . 48 4 . . 12 325 2 179 68 238 2 3 76 12 48 56 16 144 Move 13747 | 98 155 282 820 196 580 510 84 423 310 336 82 957 295 13 1175 997 1238 330 508 1446 781 135 406 98 1492 Hop 10 | . . . . . 3 . . . . . . . . . . . 6 . . . . . . . 1 Pick Up 140 | 11 9 1 3 1 18 5 . 4 2 . . 4 3 . 2 3 14 . 1 3 1 1 5 7 42 Fast Attach 58 | . 2 . . . 2 . . 3 1 . . 1 1 . 1 . 2 . 5 15 . . . . 25 Attach 118 | 7 . . . . 8 10 . 2 . . . 3 4 . 1 8 11 . 2 3 1 2 6 10 40 Detach 22 | . . . . . . 2 . 3 . . . . . . 1 5 3 . 1 1 . 1 1 1 3 Swap 19 | . 2 . 1 . 6 1 . . . . . 2 . . . . 4 . . 1 . . 1 . 1 Drop 94 | . 7 1 1 . 19 8 . 7 2 . . 1 1 . 3 4 6 . 3 18 . . 1 . 12 Fire 248 | 6 . . . . 62 . . . . . . 1 . . . 14 1 . . . . . 13 5 146 Melee 227 | . . . . . 14 . . 8 1 . . 25 19 . . . 73 1 17 . 12 . 40 17 . Ram 12 | . . . . . . . . . . . . . . . . . . . . . . 1 . . 11 Kick . | . . . . . . . . . . . . . . . . . . . . . . . . . . Crush 5 | . . 1 . . . . . . . . . . . . . . . . . . . . . . 4 Escape Stasis 64 | . . . . . . . . 18 . . . . . . . . 18 . . . . . 28 . . Rewire 39 | . . . . . . . . . . . . . . . . . . . . . . . 39 . . Trap . | . . . . . . . . . . . . . . . . . . . . . . . . . . Miscellaneous . | . . . . . . . . . . . . . . . . . . . . . . . . . . Route ------- -11/Scrapyard -10/Materials (discovered 2 exits: *Min x2) -10/Mines (discovered 3 exits: [*Mat] / *Exi / [*Sub]) -10/Exiles (discovered 2 exits: *Min x2) -9/Mines -8/Materials -7/Factory -7/Waste -7/Factory (discovered 3 exits: *Fac / *Low x2) -7/Lower Caves -7/Lower Caves -7/Data Miner -6/Proximity Caves -6/Factory (discovered 2 exits: *Low / DSF) -6/Lower Caves -6/Zion -5/Proximity Caves -5/Factory (discovered 3 exits: *Fac x2 / *Upp) -5/Upper Caves -5/Upper Caves -5/Warlord -4/Proximity Caves -4/Factory -4/Extension (discovered 3 exits: *Res x2 / [*Cet]) -4/Cetus -3/Research (discovered 1 exit: [*Res]) History --------- Turn | Location | Event 4 | -11/Scrapyard | Discovered new exit (range 15) 177 | -11/Scrapyard | Entered Materials 310 | -10/Materials | Build established: Mutant 404 | -10/Materials | Identified exit to Mines 444 | -10/Materials | Entered Mines 454 | -10/Mines | Met a Derelict bent on vengeance 493 | -10/Mines | Found a hidden stash of uninstalled traps 523 | -10/Mines | Discovered new exit (range 5) 602 | -10/Mines | Found a damaged Exp. Sensor Array with a note attached 606 | -10/Mines | Found Prototype Device 685 | -10/Mines | Discovered new exit (range 7) 933 | -10/Mines | Deemed a non-threat by the Exiles lab entrance 934 | -10/Mines | Discovered new exit (range 5) 941 | -10/Mines | Entered Exiles 985 | -10/Exiles | Met 8R-AWN 1012 | -10/Exiles | Met EX-HEX 1089 | -10/Exiles | Met EX-DEC 1120 | -10/Exiles | Visited The Gauntlet 1375 | -10/Exiles | Met EX-BIN 1397 | -10/Exiles | Aligned with FarCom system 1399 | -10/Exiles | Given EX-Vault access code 1437 | -10/Exiles | Opened EX-Vault 1476 | -10/Exiles | Warned to stay clear of 0b10 Research branches 1719 | -10/Exiles | Found Flying Fortress v7 1853 | -10/Exiles | Discovered new exit (range 10) 2064 | -10/Exiles | Discovered new exit (range 14) 2258 | -10/Exiles | Left Exiles lab with Flying Fortress v7 2258 | -10/Exiles | Entered Mines 2319 | -9/Mines | Assembled infested the area 2335 | -9/Mines | Found the Drone Emporium 2349 | -9/Mines | Found Prototype Device 2662 | -9/Mines | Discovered new exit (range 10) 2676 | -9/Mines | Entered Materials 2676 | -8/Materials | Evolved 4 slots: Propulsion x2, Utility x2 2679 | -8/Materials | Identified Thief Drone Bay 2680 | -8/Materials | Identified Exp. Sensor Array 2920 | -8/Materials | Garrison activated, responded to threat 3342 | -8/Materials | Discovered new exit (range 7) 3345 | -8/Materials | Entered Factory 3345 | -7/Factory | Evolved 2 slots: Propulsion x2 3644 | -7/Factory | Build established: Sprinter 3783 | -7/Factory | Sucked down chute 3783 | -7/Factory | Entered Waste 3787 | -7/Waste | Spotted C-40 Crusher 3789 | -7/Waste | Spotted C-40 Crusher 3789 | -7/Waste | Spotted C-40 Crusher 3792 | -7/Waste | Spotted C-40 Crusher 3797 | -7/Waste | Spotted C-40 Crusher 3798 | -7/Waste | Spotted C-40 Crusher 3802 | -7/Waste | Crushed by Compactor (1 part destroyed, 1 dropped) 3805 | -7/Waste | Discovered new exit (range 10) 3808 | -7/Waste | Entered Factory 3868 | -7/Factory | Identified exit to Lower Caves 3877 | -7/Factory | Discovered new exit (range 7) 3921 | -7/Factory | Found Powered Armor 4058 | -7/Factory | Entered Lower Caves 4162 | -7/Lower Caves | Discovered new exit (range 5) 4166 | -7/Lower Caves | Entered another Lower Caves area 4209 | -7/Lower Caves | Discovered new exit (range 6) 4239 | -7/Lower Caves | Encountered a Warlord checkpoint 4261 | -7/Lower Caves | Entered Data Miner 4261 | -7/Data Miner | Discovered new exit (range 6) 4267 | -7/Data Miner | Met Data Miner 4273 | -7/Data Miner | Learned location of Section 7 (-2) 4273 | -7/Data Miner | Acquired the access code to Warlord's prototype stash 4278 | -7/Data Miner | Received God Mode back door access code from Data Miner 4284 | -7/Data Miner | Entered Proximity Caves 4306 | -6/Proximity Caves | Attracted the attention of an 0b10 checkpoint 4427 | -6/Proximity Caves | Spotted B-75 Beast 4534 | -6/Proximity Caves | Learned Factory trap positions 4613 | -6/Proximity Caves | Discovered new exit (range 4) 4617 | -6/Proximity Caves | Lost 3 parts (1p1u1w) 4622 | -6/Proximity Caves | Entered Factory 4622 | -6/Factory | Evolved 2 slots: Power x1, Propulsion x1 4623 | -6/Factory | Identified exit to Lower Caves 4624 | -6/Factory | Loaded intel: 117 trap records 5045 | -6/Factory | Identified exit to DSF 5066 | -6/Factory | Entered Lower Caves 5067 | -6/Lower Caves | A Derelict revealed a hidden shortcut to a safe place 5071 | -6/Lower Caves | Entered Zion 5096 | -6/Zion | Discovered new exit (range 12) 5164 | -6/Zion | Learned Factory emergency access door positions 5225 | -6/Zion | Found Prototype Launcher 5226 | -6/Zion | Identified Gui. Missile Launcher 5255 | -6/Zion | Gained Derelict followers 5282 | -6/Zion | Rebuked by Imprinter 5304 | -6/Zion | Learned location of Quarantine (-2) 5504 | -6/Zion | Entered Proximity Caves 5504 | -5/Proximity Caves | Accompanied by 2 allies 5566 | -5/Proximity Caves | Learned Factory stockpile data 5582 | -5/Proximity Caves | Learned location of Warlord (-5) 5583 | -5/Proximity Caves | Learned 12 Factory zone layouts 5584 | -5/Proximity Caves | Spotter reported a threat 5604 | -5/Proximity Caves | Discovered new exit (range 15) 5605 | -5/Proximity Caves | Spotter reported a threat 5621 | -5/Proximity Caves | Spotted B-75 Beast 5637 | -5/Proximity Caves | Spotter reported a threat 5825 | -5/Proximity Caves | Entered Factory 5825 | -5/Factory | Evolved 2 slots: Utility x2 5826 | -5/Factory | Identified exit to Factory 5826 | -5/Factory | Identified exit to Upper Caves 5992 | -5/Factory | Lost 4 parts (1p3n) 6363 | -5/Factory | Discovered exit to Factory (range 20) 6580 | -5/Factory | Entered Upper Caves 6607 | -5/Upper Caves | Spotted B-75 Beast 6613 | -5/Upper Caves | Identified exit to Upper Caves 6640 | -5/Upper Caves | Learned Factory stockpile data 6658 | -5/Upper Caves | Entered another Upper Caves area 6696 | -5/Upper Caves | Attracted the attention of an 0b10 checkpoint 6762 | -5/Upper Caves | Lost 5 parts (4n1u) 6789 | -5/Upper Caves | Discovered new exit (range 7) 6951 | -5/Upper Caves | Lost 3 parts (3n) 7025 | -5/Upper Caves | Entered Warlord 7045 | -5/Warlord | Build established: Scavenger-Mutant 7068 | -5/Warlord | Discovered new exit (range 14) 7086 | -5/Warlord | System corruption cleaned by Quarantine Array 7676 | -5/Warlord | Received a Watcher feed algorithm from an ecstatic Tinkerer 7838 | -5/Warlord | Warlord's base attacked by MAIN.C 7928 | -5/Warlord | Met Warlord 8188 | -5/Warlord | Warlord forces counterattacked 8454 | -5/Warlord | Found Prototype Energy Gun 8454 | -5/Warlord | Identified Vortex Rifle 8461 | -5/Warlord | Found Prototype Launcher 8461 | -5/Warlord | Identified Vortex Catalyst Activator 8513 | -5/Warlord | Warlord base infiltrated, sounded retreat 8529 | -5/Warlord | Opened Warlord's prototype stash 8545 | -5/Warlord | Found Prototype Hackware 8545 | -5/Warlord | Identified System Mapper 8548 | -5/Warlord | Found Prototype Processor 8548 | -5/Warlord | Identified Exp. Armor Integrity Analyzer 8550 | -5/Warlord | Found Prototype Device 8550 | -5/Warlord | Identified System Purifier 8553 | -5/Warlord | Found Prototype Device 8553 | -5/Warlord | Identified Exp. Cloaking Device 8555 | -5/Warlord | Found Prototype Reactor 8555 | -5/Warlord | Identified Vortex Chain Reactor 8738 | -5/Warlord | Spotted Executioner 8738 | -5/Warlord | Spotted Executioner 8755 | -5/Warlord | Entered Proximity Caves 8823 | -4/Proximity Caves | Spotted B-86 Titan 8950 | -4/Proximity Caves | Learned Research emergency access door positions 8988 | -4/Proximity Caves | Core integrity fell below 50% 9069 | -4/Proximity Caves | Build established: Infiltrator-Gladiator 9082 | -4/Proximity Caves | Discovered exit to Factory (range 11) 9159 | -4/Proximity Caves | Entered Factory 9159 | -4/Factory | Evolved 2 slots: Utility x2 9221 | -4/Factory | Discovered new exit (range 5) 9335 | -4/Factory | Entered Extension 9365 | -4/Extension | Rescued a captive Derelict 9396 | -4/Extension | Energy Cycler disabled 9396 | -4/Extension | Rescued a captive Derelict 9396 | -4/Extension | Rescued a captive Derelict 9396 | -4/Extension | Rescued a captive Derelict 9397 | -4/Extension | Rescued a captive Derelict 9397 | -4/Extension | Rescued a captive Derelict 9404 | -4/Extension | Rescued a captive Derelict 9418 | -4/Extension | Rescued a captive Derelict 9622 | -4/Extension | Spotted B-86 Titan 9641 | -4/Extension | Spotted B-86 Titan 9681 | -4/Extension | Destroyed B-86 Titan 9689 | -4/Extension | Extracted ID and sensor layout for unrecognized location from A7's data core 9690 | -4/Extension | Discovered new exit (range 16) 9697 | -4/Extension | Lost 8 allies 9801 | -4/Extension | Discovered new exit (range 10) 9809 | -4/Extension | Discovered new exit (range 6) 9818 | -4/Extension | Entered Cetus 9825 | -4/Cetus | Spotted Cetus Guard 9826 | -4/Cetus | Spotted Cetus Guard 9826 | -4/Cetus | Spotted Cetus Guard 9834 | -4/Cetus | Discovered new exit (range 15) 9854 | -4/Cetus | Spotted Cetus Guard 9858 | -4/Cetus | Lost 10 parts (2p6n2u) 9863 | -4/Cetus | Core integrity fell below 50% 9864 | -4/Cetus | Destroyed Cetus Guard 9894 | -4/Cetus | Destroyed Cetus Guard 9898 | -4/Cetus | Core integrity fell below 20% 9919 | -4/Cetus | Destroyed Cetus Guard 9925 | -4/Cetus | Destroyed Cetus Guard 9942 | -4/Cetus | Lost 7 parts (3n2u2w) 10161 | -4/Cetus | Build established: Scavenger-Mutant 10295 | -4/Cetus | Entered Research 10295 | -3/Research | Evolved 2 slots: Propulsion x1, Utility x1 11571 | -3/Research | System corruption reached 10% 11658 | -3/Research | Lost 8 parts (2p2n2u2w) 11929 | -3/Research | Cargo convoy interrupted 11957 | -3/Research | Incoming assault squad redirected 11987 | -3/Research | Lost 11 parts (1p3n5u2w) 12315 | -3/Research | Discovered new exit (range 11) 12385 | -3/Research | Lost 10 parts (1p5n2u2w) 12582 | -3/Research | Lost 3 parts (1p2n) 12751 | -3/Research | System corruption reached 30% 12812 | -3/Research | Spotted B-86 Titan 12832 | -3/Research | Core integrity fell below 50% 12863 | -3/Research | Lost 11 parts (2p7n2u) 12941 | -3/Research | Core integrity fell below 20% 13080 | -3/Research | Lost 4 parts (3n1u) 13102 | -3/Research | Spotted B-86 Titan 13104 | -3/Research | Destroyed by B-86 Titan with Matter Neutralizer Last Messages --------------- 13026_ Acquired Imp. Heavy Siege Treads. 13030_ Slammed into P-80 Master. 13030_ Imp. Gyrokinetic Inverter broken. 13030_ Destabilizing: Short circuit. 13030_ U-05 Engineer builds a Door. 13031_ Slammed into P-80 Master. 13033_ Slammed into K-01 Serf. 13034_ Imp. Heavy Siege Treads destroyed. 13039_ K-01 Serf destroyed. 13040_ Cld. Gravmag System destroyed. 13042_ K-01 Serf collects debris. 13046_ System corrupted: Matter fused (-10). 13049_ Imp. Gyrokinetic Inverter destroyed. 13049_ Adv. Hacking Suite destroyed. 13061_ System corrupted: Heat flow error (+130). 13077_ U L=P>U:%BJKHG|U5E0 7